bitfinex/quotes_BTCUSD_20250110
["timestamp","ask_amount","ask_price","bid_price","bid_amount"]
[1736535915176,0.16163626,94762.0,94761.0,8.53e-05]
[1736535915383,0.15319626,94762.0,94761.0,8.53e-05]
[1736535915797,0.50349602,94762.0,94761.0,8.53e-05]
[1736535916008,0.00241106,94730.0,94729.0,8.54e-05]
[1736535916247,0.36432226,94730.0,94729.0,8.54e-05]
[1736535916462,0.36353706,94730.0,94729.0,8.54e-05]
[1736535916672,0.42100057,94730.0,94729.0,8.54e-05]
[1736535917090,0.3935184,94730.0,94729.0,8.54e-05]
[1736535917529,0.62081816,94730.0,94729.0,8.54e-05]
[1736535917752,0.62081816,94730.0,94688.0,0.0502708]
[1736535917753,0.46355506,94722.0,94688.0,0.1328708]
[1736535917939,0.69085482,94722.0,94688.0,0.15410745]
[1736535918168,0.69085482,94722.0,94717.0,0.03888081]
[1736535918169,0.25241106,94718.0,94717.0,0.03888081]
[1736535918434,0.35671082,94718.0,94717.0,0.03888081]
[1736535919098,0.48658606,94708.0,94688.0,0.0502708]
[1736535919300,0.82412582,94708.0,94688.0,0.0502708]
[1736535919507,0.82412582,94708.0,94691.0,0.0017556]
[1736535919717,0.60112582,94708.0,94691.0,0.0017556]
[1736535919891,0.40968606,94708.0,94691.0,0.0017556]
[1736535920310,0.41568606,94708.0,94707.0,0.00107683]
[1736535920436,0.367175,94708.0,94707.0,0.00107683]
[1736535920662,0.36958606,94708.0,94707.0,0.00107683]
[1736535921033,0.37258606,94708.0,94707.0,0.00107683]
[1736535921264,0.38310064,94708.0,94707.0,0.00107683]
[1736535921477,0.4874004,94708.0,94707.0,0.00107683]
[1736535921680,0.6044004,94708.0,94707.0,7.683e-05]
[1736535921877,0.6124004,94708.0,94707.0,0.00107683]
[1736535922336,1.9378004,94708.0,94707.0,8.3e-07]
[1736535922585,1.9448004,94708.0,94707.0,0.00100083]
[1736535922805,1.9532404,94708.0,94707.0,0.00100083]
[1736535923015,1.9462404,94708.0,94707.0,8.3e-07]
[1736535923197,1.9522404,94708.0,94707.0,8.3e-07]
[1736535923636,1.9462404,94708.0,94707.0,8.3e-07]
[1736535923800,1.9432404,94708.0,94707.0,8.3e-07]
[1736535924049,1.9452404,94708.0,94707.0,8.3e-07]
[1736535924249,0.35241106,94691.0,94690.0,0.044816]
[1736535924447,0.35241106,94691.0,94688.0,0.0502708]
[1736535924448,0.35241106,94689.0,94688.0,0.02914968]
[1736535924648,0.47971082,94689.0,94688.0,0.02914968]
[1736535924823,0.50969216,94689.0,94688.0,6.8e-07]
[1736535925026,0.58839216,94689.0,94688.0,6.8e-07]
[1736535925296,0.58839216,94689.0,94660.0,0.05160604]
[1736535925297,0.39951106,94670.0,94669.0,0.06987013]
[1736535925430,0.51225082,94670.0,94669.0,0.06987013]
[1736535925631,0.30381082,94670.0,94669.0,0.06987013]
[1736535925831,0.15241106,94670.0,94669.0,0.06987013]
[1736535926243,0.00241106,94670.0,94669.0,0.06987013]
[1736535926454,0.00241106,94671.0,94669.0,0.05987013]
[1736535926678,0.00241106,94671.0,94670.0,1.5]
[1736535927031,0.00241106,94670.0,94669.0,0.05987013]
[1736535927231,0.21367106,94670.0,94669.0,0.05987013]
[1736535927531,0.46797082,94670.0,94669.0,0.05987013]
[1736535927743,0.47097082,94670.0,94669.0,0.05987013]
[1736535927960,0.38556783,94670.0,94669.0,0.05987013]
[1736535928170,0.37712783,94670.0,94669.0,0.05987013]
[1736535928346,0.37412783,94670.0,94669.0,0.05987013]
[1736535928768,0.37612783,94670.0,94669.0,0.05987013]
[1736535928979,0.37912783,94670.0,94669.0,0.05987013]
[1736535929184,0.36567106,94670.0,94669.0,0.05987013]
[1736535929547,0.37167106,94670.0,94669.0,0.06087013]
[1736535929756,0.37650621,94670.0,94669.0,0.05987013]
[1736535930840,0.37450621,94670.0,94669.0,0.05987013]
[1736535931045,0.50180597,94670.0,94669.0,0.05987013]
[1736535931252,0.70575233,94670.0,94669.0,0.05987013]
[1736535931471,0.70375233,94670.0,94669.0,0.05987013]
[1736535931678,0.75108535,94670.0,94669.0,1.3e-07]
[1736535931877,0.75108535,94670.0,94632.0,0.05294129]
[1736535931878,0.17535742,94653.0,94632.0,0.05294129]
[1736535932081,0.38315458,94653.0,94632.0,0.05294129]
[1736535932418,0.38315458,94653.0,94597.0,0.1]
[1736535932419,0.00235742,94633.0,94616.0,8.708e-05]
[1736535932533,0.211338,94635.0,94616.0,8.708e-05]
[1736535932534,0.43673542,94617.0,94616.0,8.708e-05]
[1736535932734,0.15235742,94613.0,94595.0,0.0141824]
[1736535932947,0.35744238,94613.0,94595.0,0.0141824]
[1736535933147,0.38229321,94613.0,94595.0,0.0141824]
[1736535933352,0.15499345,94613.0,94595.0,0.0141824]
[1736535933768,0.15263603,94613.0,94600.0,0.076]
[1736535933965,0.00263603,94613.0,94610.0,0.211393]
[1736535934226,0.101,94653.0,94612.0,0.10438516]
[1736535934227,0.00844,94648.0,94612.0,0.10438516]
[1736535934446,0.15,94635.0,94613.0,0.31568676]
[1736535934580,0.001,94653.0,94618.0,0.10429976]
[1736535934581,0.00235742,94640.0,94618.0,0.10429976]
[1736535934781,0.00283079,94634.0,94633.0,0.211342]
[1736535934978,0.0007852,94651.0,94640.0,0.211326]
[1736535935224,0.00235742,94648.0,94640.0,0.211326]
[1736535935410,0.007,94648.0,94635.0,0.211338]
[1736535935610,0.00235742,94644.0,94641.0,1.5]
[1736535936636,0.00235742,94644.0,94640.0,0.002]
[1736535937468,0.00235742,94644.0,94641.0,0.211324]
[1736535937648,0.007,94648.0,94643.0,0.21132]
[1736535938265,0.1507852,94656.0,94643.0,0.21132]
[1736535938474,0.00281081,94655.0,94644.0,0.10535633]
[1736535938680,0.00281081,94655.0,94654.0,0.211295]
[1736535938884,0.0007852,94674.0,94661.0,0.21128]
[1736535939092,0.00235742,94659.0,94655.0,1.5]
[1736535939299,0.00235742,94664.0,94656.0,0.10429976]
[1736535939504,0.15,94669.0,94660.0,0.211281]
[1736535939718,0.15,94669.0,94656.0,0.31558976]
[1736535939933,0.00235742,94676.0,94661.0,0.21128]
[1736535940140,0.00235742,94670.0,94666.0,0.211267]
[1736535940352,0.00235742,94670.0,94667.0,0.10429976]
[1736535940778,0.15,94682.0,94667.0,0.10429976]
[1736535940973,0.0007852,94685.0,94669.0,0.211262]
[1736535941207,0.00235742,94670.0,94669.0,0.211262]
[1736535941417,0.001,94670.0,94669.0,0.31556176]
[1736535941598,0.00235742,94686.0,94677.0,0.211243]
[1736535942035,0.00303403,94685.0,94669.0,0.39476176]
[1736535942247,0.00303403,94685.0,94669.0,0.0792]
[1736535942248,0.00235742,94683.0,94669.0,0.0792]
[1736535942453,0.00235742,94671.0,94654.0,0.0798]
[1736535942657,0.00235742,94658.0,94655.0,0.10429976]
[1736535942831,0.00235742,94658.0,94655.0,0.31559176]
[1736535943315,0.00235742,94665.0,94656.0,0.27196038]
[1736535943521,0.001,94670.0,94656.0,0.27196038]
[1736535943522,0.00235742,94664.0,94658.0,0.211286]
[1736535943697,0.00235742,94664.0,94660.0,0.211282]
[1736535943905,0.00235742,94674.0,94660.0,0.211282]
[1736535944110,0.00235742,94672.0,94669.0,0.001]
[1736535944525,0.00235742,94672.0,94661.0,0.31557776]
[1736535944730,0.0030271,94671.0,94661.0,0.31557776]
[1736535944935,0.0030271,94671.0,94666.0,0.211269]
[1736535945141,0.0030271,94671.0,94667.0,0.10429976]
[1736535945344,0.00235742,94672.0,94667.0,0.10429976]
[1736535945345,0.00235742,94672.0,94669.0,0.002]
[1736535945553,0.00235742,94672.0,94669.0,0.006]
[1736535945860,0.00235742,94672.0,94667.0,0.10429976]
[1736535946262,0.00235742,94672.0,94666.0,0.002]
[1736535946708,0.00235742,94673.0,94667.0,0.31556576]
[1736535946912,0.22170789,94685.0,94667.0,0.31556576]
[1736535946913,0.15,94684.0,94672.0,0.211255]
[1736535947113,0.0007852,94683.0,94668.0,0.211264]
[1736535947287,0.0007852,94683.0,94668.0,0.31556376]
[1736535947496,0.00299317,94682.0,94668.0,0.31556376]
[1736535947697,0.00299317,94682.0,94669.0,0.002]
[1736535948105,0.00235742,94672.0,94668.0,0.10429976]
[1736535948497,0.00235742,94672.0,94668.0,0.10529976]
[1736535949008,0.00235742,94684.0,94683.0,0.211229]
[1736535949208,0.1485,94711.0,94683.0,0.10429976]
[1736535949209,0.211192,94701.0,94683.0,0.10429976]
[1736535949507,0.15,94698.0,94684.0,0.10429976]
[1736535949734,0.15,94695.0,94676.0,0.211245]
[1736535949938,0.00235742,94683.0,94669.0,0.211262]
[1736535950151,0.00235742,94683.0,94668.0,0.002]
[1736535950152,0.211233,94682.0,94668.0,0.002]
[1736535950343,0.00235742,94672.0,94668.0,0.002]
[1736535950492,0.00235742,94669.0,94657.0,0.23259724]
[1736535950697,0.00549102,94668.0,94659.0,0.211284]
[1736535950944,0.00235742,94668.0,94660.0,0.10429976]
[1736535951150,0.00235742,94668.0,94661.0,0.21128]
[1736535951304,0.00235742,94668.0,94650.0,0.211304]
[1736535951515,0.0007852,94677.0,94655.0,0.10429976]
[1736535951516,0.15,94677.0,94655.0,0.10429976]
[1736535951726,0.00315139,94676.0,94675.0,0.211249]
[1736535951935,0.211213,94691.0,94675.0,0.211249]
[1736535952136,0.00315949,94690.0,94675.0,0.211249]
[1736535952336,0.15315949,94690.0,94675.0,0.211249]
[1736535952537,0.15315949,94690.0,94676.0,0.10429976]
[1736535952831,0.15315949,94690.0,94676.0,0.31554476]
[1736535953050,0.00315949,94690.0,94685.0,0.211224]
[1736535953235,0.00315949,94690.0,94677.0,0.05580603]
[1736535953236,0.00315949,94690.0,94677.0,1.5827]
[1736535953451,0.211189,94702.0,94679.0,0.211238]
[1736535953452,0.00235742,94680.0,94679.0,0.211238]
[1736535953576,0.1507852,94697.0,94679.0,0.211238]
[1736535953577,0.01071954,94706.0,94679.0,0.10429976]
[1736535953783,0.211176,94708.0,94693.0,0.211207]
[1736535953984,0.15,94707.0,94694.0,0.10429976]
[1736535954238,0.15,94705.0,94694.0,0.10429976]
[1736535954478,0.00235742,94695.0,94694.0,0.10429976]
[1736535954679,0.00346298,94704.0,94694.0,0.10429976]
[1736535954894,0.211177,94708.0,94694.0,0.10429976]
[1736535955067,0.00347852,94703.0,94700.0,0.211192]
[1736535955211,0.00235742,94702.0,94701.0,0.10429976]
[1736535955426,0.00235742,94695.0,94688.0,0.211219]
[1736535955723,0.15,94708.0,94694.0,0.004]
[1736535955924,0.00235742,94695.0,94694.0,0.10829976]
[1736535956105,0.211177,94707.0,94694.0,0.11129976]
[1736535956278,0.00235742,94695.0,94694.0,0.11129976]
[1736535957069,0.00235742,94695.0,94694.0,0.003]
[1736535957266,0.00235742,94698.0,94694.0,0.10729976]
[1736535957479,0.211168,94711.0,94699.0,0.211194]
[1736535957793,0.211168,94711.0,94700.0,0.10429976]
[1736535958017,0.00235742,94701.0,94700.0,0.10429976]
[1736535958224,0.211177,94708.0,94700.0,0.10429976]
[1736535958418,0.15,94710.0,94700.0,1.60429976]
[1736535958600,0.211149,94720.0,94700.0,0.10429976]
[1736535958777,0.00235742,94704.0,94700.0,0.10429976]
[1736535958983,0.00235742,94704.0,94701.0,1.5]
[1736535959408,0.211191,94701.0,94700.0,0.001]
[1736535959609,0.21354842,94701.0,94700.0,0.001]
[1736535960364,0.00235742,94701.0,94684.0,0.02197053]
[1736535960585,0.000171,94712.0,94685.0,0.12867593]
[1736535960795,0.15,94710.0,94700.0,0.002]
[1736535960996,0.000171,94712.0,94701.0,0.10429976]
[1736535960997,0.211168,94711.0,94701.0,0.10429976]
[1736535961207,0.00344757,94709.0,94701.0,0.10429976]
[1736535961412,0.00235742,94702.0,94701.0,0.10429976]
[1736535961614,0.150171,94712.0,94701.0,0.10429976]
[1736535961870,0.00235742,94702.0,94701.0,0.10429976]
[1736535962279,0.00235742,94702.0,94701.0,0.10529976]
[1736535962492,0.00235742,94706.0,94701.0,0.10529976]
[1736535962689,0.211177,94708.0,94701.0,0.10529976]
[1736535962690,0.00583416,94702.0,94701.0,0.10529976]
[1736535962893,0.00235742,94702.0,94701.0,0.11029976]
[1736535963093,0.211168,94711.0,94701.0,0.11029976]
[1736535963307,0.00235742,94702.0,94701.0,0.11029976]
[1736535963521,0.00235742,94702.0,94701.0,0.006]
[1736535963732,0.00583279,94702.0,94701.0,0.005]
[1736535963939,0.00235742,94702.0,94701.0,0.007]
[1736535964155,0.00584614,94702.0,94701.0,0.002]
[1736535964387,0.00235742,94702.0,94701.0,0.002]
[1736535964610,0.00581337,94702.0,94701.0,0.003]
[1736535964822,0.00235742,94702.0,94701.0,0.002]
[1736535965038,0.00569551,94702.0,94701.0,0.007]
[1736535965176,0.00235742,94702.0,94701.0,0.007]
[1736535965377,0.00569551,94702.0,94701.0,0.007]
[1736535965610,0.211185,94704.0,94701.0,0.007]
[1736535965871,0.00334356,94702.0,94701.0,0.11129976]
[1736535966070,0.211172,94710.0,94701.0,0.11129976]
[1736535966071,0.000171,94712.0,94704.0,0.211184]
[1736535966277,0.000171,94712.0,94705.0,0.10429976]
[1736535966720,0.00333927,94711.0,94705.0,0.10429976]
[1736535967551,0.000171,94712.0,94710.0,0.21117]
[1736535967765,0.000171,94712.0,94711.0,0.10535549]
[1736535968026,0.000171,94712.0,94699.0,0.1]
[1736535968027,0.00235742,94709.0,94696.0,0.211201]
[1736535968225,0.00235742,94709.0,94705.0,0.001]
[1736535968431,0.211175,94708.0,94705.0,0.001]
[1736535968642,0.42470842,94708.0,94705.0,0.004]
[1736535968837,0.00235742,94698.0,94697.0,0.10429976]
[1736535969454,0.0057337,94698.0,94697.0,0.10429976]
[1736535969660,0.00235742,94698.0,94697.0,0.10429976]
[1736535969865,0.00235742,94698.0,94687.0,1.5]
[1736535970078,0.211163,94714.0,94667.0,0.1]
[1736535970079,0.211243,94678.0,94667.0,0.0759]
[1736535970283,0.00235742,94684.0,94668.0,0.10429976]
[1736535970489,0.00235742,94684.0,94674.0,0.21125]
[1736535970490,0.00336727,94677.0,94674.0,0.21125]
[1736535970702,0.00235742,94692.0,94684.0,0.211228]
[1736535970918,0.00235742,94692.0,94685.0,0.10429976]
[1736535971126,0.00235742,94682.0,94673.0,0.02062009]
[1736535971322,0.00235742,94690.0,94675.0,0.211249]
[1736535971556,0.00331652,94691.0,94677.0,0.211244]
[1736535971764,0.00235742,94695.0,94683.0,0.21123]
[1736535971987,0.01317749,94697.0,94684.0,0.10429976]
[1736535972173,0.00333998,94694.0,94691.0,0.211213]
[1736535972413,0.0033272,94696.0,94692.0,0.10429976]
[1736535972615,0.00235742,94701.0,94692.0,0.31550976]
[1736535972821,0.13,94700.0,94691.0,0.03155128]
[1736535973042,0.13,94700.0,94633.0,0.31746745]
[1736535973043,0.1,94646.0,94633.0,0.31746745]
[1736535973285,0.1,94645.0,94633.0,0.31746745]
[1736535973493,0.10318529,94645.0,94633.0,0.31746745]
[1736535973701,0.10318529,94645.0,94633.0,0.35138087]
[1736535973905,0.10318529,94645.0,94633.0,0.03391342]
[1736535973906,0.211318,94644.0,94633.0,0.03391342]
[1736535974111,0.211328,94640.0,94625.0,0.0088]
[1736535974338,0.211328,94640.0,94633.0,0.001]
[1736535974759,0.211328,94640.0,94626.0,0.10429976]
[1736535974760,0.0032786,94639.0,94626.0,0.10429976]
[1736535974972,0.0032786,94639.0,94633.0,0.002]
[1736535975152,0.211313,94647.0,94634.0,0.10429976]
[1736535975363,0.0467,94672.0,94634.0,0.10429976]
[1736535975364,0.1,94654.0,94635.0,0.21239459]
[1736535975564,0.21429049,94653.0,94636.0,0.31563576]
[1736535975768,0.21429049,94653.0,94652.0,1.5]
[1736535975769,0.00299249,94653.0,94652.0,1.5]
[1736535975972,0.1,94654.0,94652.0,1.5]
[1736535976180,0.21427854,94653.0,94636.0,0.31563576]
[1736535976385,0.00298054,94653.0,94640.0,0.211326]
[1736535976590,0.00298054,94653.0,94641.0,0.10429976]
[1736535976791,0.211295,94655.0,94652.0,1.5]
[1736535977016,0.1,94672.0,94653.0,0.10429976]
[1736535977224,0.211216,94690.0,94653.0,0.10429976]
[1736535977225,0.1,94680.0,94654.0,0.00985635]
[1736535977441,0.1,94688.0,94655.0,0.32700837]
[1736535977647,0.211205,94695.0,94655.0,0.32700837]
[1736535977648,0.211205,94695.0,94679.0,1.5]
[1736535977858,0.1,94698.0,94680.0,0.10429976]
[1736535977859,0.211212,94692.0,94680.0,0.10429976]
[1736535978072,0.211203,94696.0,94680.0,0.10429976]
[1736535978278,0.211198,94698.0,94695.0,1.5]
[1736535978709,0.211198,94698.0,94681.0,0.211235]
[1736535978710,0.211198,94698.0,94681.0,0.42247]
[1736535978911,0.311181,94706.0,94681.0,0.42247]
[1736535978912,0.211207,94694.0,94682.0,0.10535582]
[1736535979059,0.211207,94694.0,94682.0,0.10429976]
[1736535979257,0.1,94704.0,94683.0,0.21228706]
[1736535979465,0.211183,94705.0,94689.0,0.211215]
[1736535979662,0.211183,94705.0,94690.0,0.10429976]
[1736535979861,0.2219414,94714.0,94690.0,0.10429976]
[1736535979862,0.1,94710.0,94691.0,0.211213]
[1736535980064,0.211185,94704.0,94692.0,0.10429976]
[1736535980972,0.15,94708.0,94693.0,0.211208]
[1736535981182,0.15,94708.0,94694.0,0.10429976]
[1736535981742,0.15,94708.0,94692.0,0.001]
[1736535981951,0.211228,94685.0,94669.0,0.211261]
[1736535982157,0.422422,94692.0,94673.0,0.211252]
[1736535982335,0.21122,94688.0,94674.0,0.31555076]
[1736535982549,0.211201,94697.0,94674.0,0.11602282]
[1736535982759,0.21118,94706.0,94675.0,0.00105606]
[1736535982970,0.21118,94706.0,94691.0,0.211211]
[1736535983195,0.001,94708.0,94694.0,0.211206]
[1736535983403,0.001,94708.0,94694.0,0.31550576]
[1736535983612,0.211177,94707.0,94694.0,0.13585034]
[1736535983815,0.211179,94706.0,94694.0,0.10429976]
[1736535984593,0.1,94718.0,94701.0,0.21119]
[1736535984864,0.001,94707.0,94702.0,0.00105586]
[1736535985040,0.001,94707.0,94702.0,0.52773062]
[1736535985225,0.01079879,94728.0,94711.0,0.211168]
[1736535985576,0.211129,94729.0,94711.0,0.14653376]
[1736535985778,0.211117,94734.0,94711.0,1.60429976]
[1736535985907,0.000171,94750.0,94711.0,1.60429976]
[1736535985908,0.100171,94743.0,94711.0,1.60429976]
[1736535986118,0.2111,94742.0,94711.0,1.60429976]
[1736535986319,0.211111,94737.0,94711.0,1.60429976]
[1736535986524,0.15,94727.0,94711.0,1.60429976]
[1736535986724,0.211157,94716.0,94711.0,1.5]
[1736535986946,0.001171,94712.0,94711.0,1.5]
[1736535987350,0.001171,94712.0,94711.0,1.60429976]
[1736535987580,0.000171,94712.0,94711.0,1.60429976]
[1736535987785,0.000171,94712.0,94711.0,1.71959952]
[1736535988235,0.000171,94712.0,94711.0,1.71159952]
[1736535988389,0.000171,94712.0,94711.0,1.70859952]
[1736535988575,0.000171,94712.0,94711.0,1.71059952]
[1736535988776,0.000171,94712.0,94711.0,1.70859952]
[1736535989559,0.000171,94712.0,94711.0,1.60429976]
[1736535989993,0.000171,94712.0,94711.0,1.60529976]
[1736535990413,0.000171,94712.0,94711.0,1.61429976]
[1736535990697,0.000171,94712.0,94711.0,1.60529976]
[1736535990975,0.000171,94712.0,94711.0,1.502]
[1736535991213,0.00329499,94712.0,94711.0,1.501]
[1736535991477,0.00331183,94712.0,94711.0,1.503]
[1736535991730,0.000171,94712.0,94711.0,1.502]
[1736535992018,0.000171,94712.0,94711.0,1.503]
[1736535992530,0.000171,94712.0,94711.0,1.71159952]
[1736535994512,0.000171,94712.0,94711.0,1.71059952]
[1736535994718,0.000171,94712.0,94711.0,1.70859952]
[1736535994923,0.000171,94712.0,94711.0,1.70959952]
[1736535995127,0.000171,94712.0,94711.0,1.71159952]
[1736535995476,0.000171,94712.0,94711.0,1.60729976]
[1736535995689,0.000171,94712.0,94711.0,1.503]
[1736535996105,0.00303602,94712.0,94711.0,1.503]
[1736535996726,0.00303602,94712.0,94711.0,1.502]
[1736535996929,0.00303602,94712.0,94711.0,1.501]
[1736535997135,0.000171,94712.0,94711.0,1.501]
[1736535997336,0.000171,94712.0,94711.0,1.503]
[1736535998990,0.211337,94712.0,94711.0,1.503]
[1736535999191,0.211117,94734.0,94711.0,1.81846676]
[1736535999398,0.211127,94730.0,94719.0,0.211148]
[1736535999634,0.00290406,94733.0,94719.0,0.31544776]
[1736535999635,0.00286751,94729.0,94719.0,0.31544776]
[1736535999837,0.00286751,94729.0,94728.0,1.5]
[1736536000043,0.211117,94734.0,94728.0,1.5]
[1736536000254,0.211117,94734.0,94720.0,0.31544776]
[1736536000468,0.0029349,94733.0,94722.0,0.211144]
[1736536000681,0.0029349,94733.0,94732.0,1.711121]
[1736536000886,0.0029349,94733.0,94732.0,1.89162076]
[1736536001088,0.000171,94743.0,94737.0,0.21111]
[1736536001299,0.000171,94743.0,94738.0,0.10535511]
[1736536001491,0.000171,94743.0,94742.0,0.211099]
[1736536001704,0.000171,94743.0,94742.0,1.81539876]
[1736536003564,0.000171,94743.0,94742.0,1.83612074]
[1736536003753,0.000171,94743.0,94742.0,1.84112074]
[1736536004202,0.000171,94743.0,94742.0,1.53472198]
[1736536004405,0.000171,94743.0,94742.0,1.514]
[1736536004610,0.000171,94743.0,94742.0,1.61829976]
[1736536004824,0.000171,94743.0,94742.0,1.93369852]
[1736536005684,0.000171,94743.0,94742.0,1.92869852]
[1736536006080,0.000171,94743.0,94742.0,1.93069852]
[1736536006237,0.000171,94743.0,94742.0,1.92169852]
[1736536006644,0.000171,94743.0,94742.0,1.92769852]
[1736536006848,0.000171,94743.0,94742.0,1.92169852]
[1736536007055,0.000171,94743.0,94742.0,1.91969852]
[1736536007281,0.000171,94743.0,94742.0,1.93069852]
[1736536007975,0.000171,94743.0,94742.0,1.511]
[1736536008395,0.000171,94743.0,94742.0,1.61529976]
[1736536008604,0.00291033,94743.0,94742.0,1.61529976]
[1736536008820,0.000171,94743.0,94742.0,1.61529976]
[1736536009176,0.000171,94743.0,94742.0,1.61229976]
[1736536009392,0.000171,94743.0,94742.0,1.70859952]
[1736536009716,0.000171,94743.0,94742.0,0.20959952]
[1736536010080,0.211099,94742.0,94738.0,0.02102191]
[1736536010466,0.00280006,94741.0,94738.0,0.02102191]
[1736536010667,0.00280006,94741.0,94740.0,1.5]
[1736536011082,0.211099,94742.0,94740.0,1.5]
[1736536011307,0.00280173,94741.0,94740.0,1.5]
[1736536011712,0.00280173,94741.0,94740.0,1.48]
[1736536013018,0.00380173,94741.0,94740.0,1.48]
[1736536013463,0.00380173,94741.0,94740.0,1.482]
[1736536013883,0.00380173,94741.0,94700.0,0.211191]
[1736536013884,0.211173,94709.0,94688.0,0.0797]
[1736536014199,0.1,94702.0,94675.0,0.211248]
[1736536014413,0.211233,94682.0,94676.0,1.60429976]
[1736536014636,0.21122,94688.0,94678.0,0.211241]
[1736536014848,0.0026608,94681.0,94676.0,1.5]
[1736536015057,0.211226,94685.0,94676.0,1.72928463]
[1736536015262,0.1,94693.0,94676.0,1.70859952]
[1736536015472,0.22175177,94689.0,94676.0,1.70859952]
[1736536015691,0.211205,94695.0,94677.0,0.10535588]
[1736536015905,0.00265399,94688.0,94678.0,0.10429976]
[1736536016113,0.1,94703.0,94679.0,0.10429976]
[1736536016327,0.211202,94696.0,94679.0,0.10429976]
[1736536016535,0.211197,94698.0,94686.0,0.211222]
[1736536016747,0.00265109,94695.0,94687.0,0.12542196]
[1736536016954,0.001,94689.0,94687.0,0.12542196]
[1736536017161,0.211206,94694.0,94687.0,0.12542196]
[1736536017370,0.00265968,94688.0,94687.0,0.12542196]
[1736536017572,0.211207,94694.0,94687.0,0.12542196]
[1736536017773,0.00266135,94688.0,94687.0,0.12542196]
[1736536017980,0.211207,94694.0,94687.0,0.12542196]
[1736536018403,0.00267402,94693.0,94687.0,0.12542196]
[1736536018856,0.00267402,94693.0,94688.0,1.5]
[1736536019064,0.00267402,94693.0,94688.0,1.60429976]
[1736536019273,0.00267402,94693.0,94689.0,0.10429976]
[1736536019483,0.00267402,94693.0,94688.0,0.10429976]
[1736536019652,0.211187,94703.0,94690.0,0.10429976]
[1736536019874,0.211187,94703.0,94691.0,1.5]
[1736536020075,0.00268579,94702.0,94692.0,0.10429976]
[1736536020298,0.1,94706.0,94693.0,0.02106978]
[1736536020450,0.076,94721.0,94689.0,0.001]
[1736536020451,0.1,94704.0,94689.0,0.001]
[1736536020659,0.211205,94695.0,94694.0,1.5]
[1736536021026,0.00269222,94695.0,94694.0,1.5]
[1736536021444,0.1,94700.0,94687.0,0.02146289]
[1736536021445,0.2112,94697.0,94687.0,0.02146289]
[1736536021650,0.00269222,94695.0,94687.0,0.02146289]
[1736536021848,0.00269054,94696.0,94687.0,0.02146289]
[1736536022058,0.2112,94697.0,94687.0,0.06585548]
[1736536022290,0.00269054,94695.0,94687.0,0.06585548]
[1736536022492,0.01041194,94699.0,94688.0,0.10429976]
[1736536022798,0.211188,94703.0,94690.0,0.211215]
[1736536022995,0.00269054,94702.0,94691.0,0.10429976]
[1736536023207,0.211135,94726.0,94693.0,0.289508]
[1736536023456,0.00267975,94725.0,94699.0,0.023]
[1736536023661,0.00267975,94725.0,94700.0,0.10535541]
[1736536023870,0.211138,94725.0,94709.0,0.21117]
[1736536024013,0.211138,94725.0,94710.0,0.10429976]
[1736536024216,0.211141,94723.0,94711.0,0.211168]
[1736536024434,0.211144,94722.0,94708.0,0.02147346]
[1736536024655,0.211144,94722.0,94691.0,0.001]
[1736536024656,0.211159,94716.0,94694.0,0.211206]
[1736536024853,0.211149,94720.0,94695.0,0.10429976]
[1736536025053,0.15,94738.0,94696.0,0.211202]
[1736536025054,0.1,94714.0,94696.0,0.211202]
[1736536025274,0.1,94714.0,94697.0,0.13932976]
[1736536025485,0.00271745,94713.0,94705.0,0.02127205]
[1736536025736,0.00271745,94713.0,94712.0,1.5]
[1736536025944,0.211145,94722.0,94712.0,1.5]
[1736536026191,0.1,94730.0,94713.0,0.422328]
[1736536026396,0.211135,94726.0,94713.0,0.422328]
[1736536026596,0.00270371,94725.0,94717.0,0.211153]
[1736536026820,0.1,94727.0,94717.0,0.211153]
[1736536027034,0.01047514,94738.0,94721.0,0.211144]
[1736536027228,0.1,94731.0,94714.0,0.211162]
[1736536027462,0.422252,94730.0,94715.0,0.10429976]
[1736536027967,0.21113,94728.0,94715.0,0.10429976]
[1736536028144,0.00271638,94729.0,94716.0,0.10429976]
[1736536028388,0.00272153,94727.0,94717.0,0.10429976]
[1736536028598,0.00272042,94728.0,94722.0,0.211142]
[1736536028824,0.2111,94742.0,94717.0,0.10429976]
[1736536029031,0.05650137,94743.0,94723.0,0.10429976]
[1736536029240,0.002,94738.0,94734.0,0.211115]
[1736536029452,0.002,94738.0,94731.0,0.211123]
[1736536029659,0.000171,94743.0,94732.0,1.5]
[1736536029867,0.00270779,94737.0,94732.0,1.5]
[1736536030084,0.000171,94743.0,94733.0,0.211119]
[1736536030085,0.002,94738.0,94733.0,0.211119]
[1736536030290,0.002,94738.0,94734.0,0.04413619]
[1736536030496,0.000171,94743.0,94734.0,0.04413619]
[1736536030497,0.001,94742.0,94736.0,0.211111]
[1736536030717,0.001,94742.0,94737.0,0.10429976]
[1736536031145,0.001,94742.0,94738.0,0.211108]
[1736536031364,0.001,94742.0,94738.0,0.31540776]
[1736536031792,0.001,94742.0,94732.0,1.5]
[1736536031999,0.000171,94743.0,94732.0,1.711121]
[1736536032201,0.000171,94743.0,94728.0,0.21113]
[1736536032382,0.000171,94743.0,94733.0,0.004]
[1736536032683,0.311117,94734.0,94733.0,0.004]
[1736536032884,0.311117,94734.0,94733.0,0.001]
[1736536032885,0.506317,94734.0,94733.0,0.001]
[1736536033101,0.50900541,94734.0,94733.0,0.001]
[1736536033329,0.25,94733.0,94732.0,0.005]
[1736536033527,0.25,94733.0,94692.0,0.02166294]
[1736536033528,0.2112,94697.0,94692.0,0.02166294]
[1736536033734,0.4224,94697.0,94683.0,0.211231]
[1736536033952,0.211204,94695.0,94684.0,0.14654656]
[1736536034152,0.211204,94695.0,94665.0,0.1805]
[1736536034153,0.21122,94688.0,94649.0,8.55e-05]
[1736536034362,0.15,94699.0,94663.0,0.211273]
[1736536034363,0.211245,94677.0,94663.0,0.211273]
[1736536034567,0.211245,94677.0,94651.0,0.33393295]
[1736536034568,0.1,94673.0,94665.0,0.02126984]
[1736536034775,0.1,94673.0,94651.0,0.33393295]
[1736536034776,0.211283,94660.0,94651.0,0.12263195]
[1736536034986,0.1,94662.0,94651.0,0.12263195]
[1736536035213,0.211292,94656.0,94651.0,0.12263195]